[Event "3rd President Cup-A 2024"]
[Site "Tashkent"]
[Date "2024.11.22"]
[Round "1.11"]
[White "Omonov, Asrorjon"]
[Black "Gareyev, Timur"]
[Result "1/2-1/2"]
[ECO "A40"]
[WhiteElo "2360"]
[BlackElo "2552"]
[Annotator "TA"]
[PlyCount "78"]
[EventDate "2024.11.22"]
[EventType "swiss"]
[EventCountry "UZB"]
[SourceTitle "playchess.com"]
[Source "ChessBase"]
[SourceQuality "1"]
[TimeControl "5400+30"]

{[%evp 12,78,66,64,51,64,56,34,97,30,39,30,58,5,0,0,31,-28,-18,-26,-26,-22,-18,-45,-20,-58,-60,-81,-80,-87,-70,-93,-90,-108,-23,-31,-26,-34,-24,-29,-29,-30,-27,-53,-68,-71,-54,-45,-46,-79,-67,-72,-12,-13,0,0,0,0,0,0,0,0,2,0,0,0,0,0,0]} 1. d4 {[%emt 0:00:13]} c5 {[%emt 0:00:12]} 2. d5 {[%emt 0:00:22]} g6 {[%emt 0:00:04]} 3. c4 {[%emt 0:00:49]} Bg7 {[%emt 0:00:10]} 4. Nc3 {[%emt 0:00:11]} Bxc3+ {[%emt 0:00:34]} 5. bxc3 {[%emt 0:00:06]} f5 {[%emt 0:00:03]} 6. e4 {[%emt 0:00:11]} fxe4 {[%emt 0:00:09]} 7. f3 {[%emt 0:03:26] White is more active.} Nf6 {[%emt 0:00:54]} 8. fxe4 {[%emt 0:02:22] [#] e5 is the strong threat.} d6 {[%emt 0:04:50][%cal Oe8g8]} 9. Nf3 {[%emt 0:04:54]} e5 {[%emt 0:08:57]} ({Better is} 9... Bg4 $1 $14) 10. dxe6 {[%emt 0:10:00]} (10. Bh6 $16) 10... Bxe6 $11 {[%emt 0:05:28][%cal Ob8c6]} 11. Bg5 {[%emt 0:03:27]} Qe7 {[%emt 0:12:26]} 12. Bxf6 {[%emt 0:03:56]} ({White should try} 12. Bd3 $14) 12... Qxf6 {[%emt 0:01:03]} 13. Qxd6 {[%emt 0:01:06][%cal Oa1b1]} Nc6 {[%emt 0:00:19]} 14. e5 {[%emt 0:09:34]} (14. Qxc5 $2 {loses.} Qxc3+ 15. Kf2 Qxa1 $19) ({White should play} 14. Rb1 $14 Qxc3+ 15. Kf2) 14... Qe7 {[%emt 0:00:06]} 15. O-O-O {[%emt 0:09:30][%cal Od1d5]} Rd8 {[%emt 0:01:05]} 16. Qxe7+ {[%emt 0:00:05]} Kxe7 {[%emt 0:00:09]} 17. Bd3 {[%emt 0:00:22]} Rhf8 {[%emt 0:02:59]} 18. Be4 {[%emt 0:17:36]} Bxc4 {[%emt 0:02:07]} 19. h4 {[%emt 0:07:51]} Rf4 {[%emt 0:02:47]} 20. Rde1 {[%emt 0:05:37]} Bd3 {[%emt 0:15:44]} 21. Bxd3 {[%emt 0:05:15]} Rxd3 {[%emt 0:00:57]} 22. Kc2 {[%emt 0:01:19]} c4 {[%emt 0:00:02]} (22... Rd5 $17 23. h5 g5 24. Nxg5 Rf2+ 25. Kc1 Rxa2 (25... Rxg2 26. Rhg1 $17)) 23. Re2 {[%emt 0:00:40]} b5 {[%emt 0:00:02] Strongly threatening ...b4.} 24. a3 {[%emt 0:04:34]} a5 {[%emt 0:00:21]} 25. Rd2 $1 {[%emt 0:00:24]} Re3 {[%emt 0:11:34][%cal Ob5b4] Threatens to win with ...b4!} 26. Rb1 {[%emt 0:08:02]} Nxe5 {[%emt 0:02:05]} 27. Nd4 {[%emt 0:01:27]} Nd3 {[%emt 0:13:57]} 28. Rxb5 {[%emt 0:00:28]} Rxh4 {[%emt 0:02:39]} 29. Rxa5 {[%emt 0:00:34]} Rh1 {[%emt 0:03:12][%csl Gd3][%cal Rh1c1]} 30. Re2 {[%emt 0:00:19]} Rxe2+ {[%emt 0:02:25]} 31. Nxe2 $17 {[%emt 0:00:01][%mdl 4096] Endgame. [#] KRN-KRN} Rh2 {[%emt 0:00:31]} (31... Ne1+ $1 $17 32. Kd2 Nxg2) 32. Kd1 {[%emt 0:00:19] The position is equal.} h5 {[%emt 0:01:35][%cal Oh5h4] And now ...h4! would win.} 33. g3 {[%emt 0:01:15]} Kf6 {[%emt 0:01:34]} 34. Ra6+ {[%emt 0:00:09]} Kg5 {[%emt 0:00:44]} 35. a4 {[%emt 0:00:17]} Rg2 {[%emt 0:03:50]} 36. a5 {[%emt 0:01:14]} Rf2 {[%emt 0:00:02]} 37. Ra8 {[%emt 0:00:23]} Kg4 {[%emt 0:00:43]} 38. a6 {[%emt 0:00:23] Rc8 would now be deadly.} Rf1+ {[%emt 0:00:56]} 39. Kd2 {[%emt 0:00:06] Hoping for Rc8.} Ra1 {[%emt 0:00:04] Weighted Error Value: White=0.15 (very precise) /Black=0.13 (very precise) .  Mistake:       	White=3     	Black=3      Inaccurate:     	White=4     	Black=2      OK:         	White=10    	Black=14     Best:        	White=1     	Black=2      Strong:       	White=1     	---} 1/2-1/2